[Event "GER-ch Youth U10 2020"]
[Site "Willingen"]
[Date "2020.10.27"]
[Round "1.1"]
[White "Theviot, Luca"]
[Black "Besou, Hussain"]
[Result "0-1"]
[ECO "A45"]
[WhiteElo "1423"]
[BlackElo "1825"]
[Annotator "NA RC"]
[PlyCount "116"]
[EventDate "2020.10.27"]
[EventType "swiss"]
[EventRounds "7"]
[EventCountry "GER"]
[SourceTitle "playchess.com"]
[Source "ChessBase"]
[SourceQuality "1"]
[TimeControl "40/4500+30:900+30"]

1. d4 {[%emt 0:00:00]} Nf6 {[%emt 0:00:00]} 2. Bg5 {[%emt 0:00:00]} e6 {[%emt 0:00:21]} 3. e4 {[%emt 0:00:00]} h6 {[%emt 0:00:04]} 4. Bxf6 {[%emt 0:00:47]} Qxf6 {[%emt 0:00:07]} 5. c3 {[%emt 0:00:34]} d6 {[%emt 0:00:11]} 6. Nd2 {[%emt 0:00:32] A45: Trompowsky Attack.} Be7 {[%emt 0:00:37]} 7. Bd3 {[%emt 0:00:32]} O-O {[%emt 0:00:38]} 8. Ne2 {[%emt 0:00:23] [#]} c5 $146 {[%emt 0:00:53]} ({Predecessor:} 8... e5 9. O-O Bg4 10. f3 Bh5 11. Ng3 Bg6 12. d5 Nd7 13. b4 a5 14. a3 Qf4 15. Qe2 Bg5 16. Nc4 axb4 17. axb4 h5 18. Nf5 Bd8 19. Rxa8 {1-0 (19) Harika,D (2513)-Kosteniuk,A (2534) Rome 2015}) 9. O-O {[%emt 0:00:46]} Nc6 {[%emt 0:00:09]} 10. Nf3 {[%emt 0:07:37]} a6 {[%emt 0:01:56]} 11. a4 {[%emt 0:03:02]} Rb8 {[%emt 0:02:11]} 12. Bc2 {[%emt 0:03:15]} b5 {[%emt 0:00:35]} 13. Qd3 {[%emt 0:04:20]} g6 {[%emt 0:00:32]} 14. axb5 {[%emt 0:02:22]} axb5 {[%emt 0:00:07]} 15. Qd2 {[%emt 0:01:14]} Qg7 {[%emt 0:00:31]} 16. Ra2 {[%emt 0:03:16]} b4 {[%emt 0:00:59]} 17. Bd3 {[%emt 0:07:48]} Bb7 {[%emt 0:07:42]} 18. Rd1 {[%emt 0:04:13]} Rfc8 {[%emt 0:06:48]} 19. h3 {[%emt 0:05:07]} bxc3 {[%emt 0:03:43]} 20. bxc3 {[%emt 0:00:37]} cxd4 {[%emt 0:00:05]} 21. cxd4 {[%emt 0:03:49]} d5 {[%emt 0:00:07]} 22. exd5 {[%emt 0:02:54]} Nb4 {[%emt 0:01:53]} 23. Rb2 {[%emt 0:02:02]} Bxd5 {[%emt 0:00:11]} 24. Ne5 {[%emt 0:02:33]} Nxd3 {[%emt 0:02:58]} 25. Rxb8 {[%emt 0:00:28]} Rxb8 {[%emt 0:00:06]} 26. Qxd3 {[%emt 0:00:18]} Rb3 {[%emt 0:00:37]} 27. Qc2 {[%emt 0:00:32]} Rb8 {[%emt 0:04:02]} 28. Rb1 {[%emt 0:02:24]} Rxb1+ {[%emt 0:00:13]} 29. Qxb1 {[%emt 0:00:13]} Bd6 {[%emt 0:00:26]} 30. Qb2 {[%emt 0:00:52]} f6 {[%emt 0:00:10]} 31. Nd3 {[%emt 0:01:25]} Qc7 {[%emt 0:00:17]} 32. Qc3 {[%emt 0:02:24]} Kf7 {[%emt 0:00:39]} 33. Qxc7+ {[%emt 0:02:22]} Bxc7 {[%emt 0:00:05]} 34. f3 {[%emt 0:01:21]} Bc4 {[%emt 0:00:33]} 35. Ndc1 {[%emt 0:02:44]} Bb6 {[%emt 0:00:12]} 36. Kh2 {[%emt 0:01:42]} Ke7 {[%emt 0:00:42]} 37. Kg3 {[%emt 0:04:36]} f5 {[%emt 0:02:06]} 38. f4 {[%emt 0:05:41]} Kd6 {[%emt 0:00:16]} 39. Kf2 {[%emt 0:00:45]} Kd5 {[%emt 0:00:34]} 40. Ke3 {[%emt 0:01:01]} Ba5 {[%emt 0:00:07]} 41. Nd3 {[%emt 0:18:17]} Bxd3 {[%emt 0:15:07]} 42. Kxd3 {[%emt 0:00:16]} g5 {[%emt 0:00:29]} 43. g3 {[%emt 0:02:27]} Be1 {[%emt 0:00:31]} 44. g4 {[%emt 0:02:31]} Bb4 {[%emt 0:01:10]} 45. fxg5 {[%emt 0:00:00]} hxg5 {[%emt 0:00:00]} 46. Ng3 {[%emt 0:00:00]} f4 {[%emt 0:00:00]} 47. Nf1 $11 {[%emt 0:00:00]} Ba5 {[%emt 0:00:00]} 48. Nh2 {[%emt 0:00:00]} Bd8 {[%emt 0:00:00]} 49. Nf3 {[%emt 0:00:00]} Bf6 {[%emt 0:00:00]} 50. h4 {[%emt 0:01:37]} gxh4 {[%emt 0:00:00]} 51. g5 {[%emt 0:00:08]} Bg7 {[%emt 0:00:00]} 52. Nxh4 {[%emt 0:00:56]} Bxd4 {[%emt 0:00:00]} 53. Ng2 {[%emt 0:00:57]} e5 {[%emt 0:00:00]} 54. g6 {[%emt 0:00:59]} e4+ {[%emt 0:00:00]} 55. Kd2 {[%emt 0:00:32]} f3 {[%emt 0:00:00]} 56. Nf4+ {[%emt 0:01:48]} Kc4 {[%emt 0:00:00]} 57. Ne6 {[%emt 0:00:20]} e3+ {[%emt 0:00:00]} 58. Ke1 {[%emt 0:00:28]} Bc3+ {[%emt 0:00:00]} 0-1

[Event "GER-ch Youth U10 2020"]
[Site "Willingen"]
[Date "2020.10.27"]
[Round "1.2"]
[White "Malinowsky, Levi"]
[Black "Mandalka, Justus"]
[Result "0-1"]
[ECO "B20"]
[WhiteElo "1606"]
[BlackElo "1437"]
[Annotator "NA RC"]
[PlyCount "82"]
[EventDate "2020.10.27"]
[EventType "swiss"]
[EventRounds "7"]
[EventCountry "GER"]
[SourceTitle "playchess.com"]
[Source "ChessBase"]
[SourceQuality "1"]
[TimeControl "40/4500+30:900+30"]

1. e4 {[%emt 0:00:00]} c5 {[%emt 0:00:00]} 2. d3 {[%emt 0:00:00]} Nc6 {[%emt 0:00:00]} 3. f4 {[%emt 0:00:28]} g6 {[%emt 0:00:00]} 4. Be2 {[%emt 0:00:53]} Bg7 {[%emt 0:00:14]} 5. Nf3 {[%emt 0:01:03]} d6 {[%emt 0:00:49]} 6. O-O {[%emt 0:00:54]} Bd7 {[%emt 0:00:55]} 7. c3 {[%emt 0:01:12]} Qb6 {[%emt 0:00:52]} 8. Kh1 {[%emt 0:01:14]} Nf6 {[%emt 0:01:12]} 9. Nbd2 {[%emt 0:01:46]} O-O {[%emt 0:01:51]} 10. Nc4 {[%emt 0:00:29]} Qc7 {[%emt 0:00:41]} 11. a4 {[%emt 0:02:59]} Rad8 {[%emt 0:01:47]} 12. Be3 {[%emt 0:04:00]} Be6 {[%emt 0:01:04]} 13. Ncd2 {[%emt 0:01:23]} Ng4 {[%emt 0:03:06]} 14. Bg1 {[%emt 0:00:17]} Qb6 {[%emt 0:00:19]} 15. Ng5 {[%emt 0:01:50]} Nh6 {[%emt 0:00:57]} 16. Nxe6 {[%emt 0:01:36]} fxe6 {[%emt 0:00:11]} 17. Nc4 {[%emt 0:02:21]} Qc7 {[%emt 0:01:56]} 18. Qb3 {[%emt 0:01:54]} b6 {[%emt 0:01:03]} 19. Ne3 {[%emt 0:04:30]} Qd7 {[%emt 0:02:00]} 20. f5 {[%emt 0:02:09]} Kh8 {[%emt 0:04:04]} 21. fxe6 {[%emt 0:02:00]} Qc8 {[%emt 0:02:17]} 22. Qd5 {[%emt 0:05:31]} Rde8 {[%emt 0:02:21]} 23. g4 {[%emt 0:04:36]} g5 {[%emt 0:04:11]} 24. Nf5 {[%emt 0:05:31]} Rf6 {[%emt 0:03:10]} 25. Nxg7 {[%emt 0:03:49]} Kxg7 {[%emt 0:00:14]} 26. Be3 {[%emt 0:01:48]} Rxe6 {[%emt 0:02:33]} 27. h4 {[%emt 0:08:07]} Ne5 {[%emt 0:04:19]} 28. Bxg5 {[%emt 0:05:38]} Nexg4 {[%emt 0:02:02]} 29. Rg1 {[%emt 0:02:27]} Nf2+ {[%emt 0:01:27]} 30. Kh2 {[%emt 0:01:01]} Kh8 {[%emt 0:01:10]} 31. Rg3 {[%emt 0:04:32]} Re5 {[%emt 0:01:34]} 32. Qc4 {[%emt 0:08:14]} Nfg4+ {[%emt 0:02:07]} 33. Bxg4 {[%emt 0:00:10]} Nxg4+ {[%emt 0:00:07]} 34. Rxg4 {[%emt 0:01:02]} Qxg4 {[%emt 0:00:53]} 35. Rg1 {[%emt 0:00:13]} Qe6 {[%emt 0:03:33]} 36. Bf4 {[%emt 0:01:31]} Rf8 {[%emt 0:02:43]} 37. Qxe6 {[%emt 0:01:25]} Rxe6 {[%emt 0:00:14]} 38. Bg3 {[%emt 0:00:56]} c4 {[%emt 0:05:59]} 39. dxc4 {[%emt 0:01:17]} Rxe4 {[%emt 0:00:16]} 40. b3 {[%emt 0:00:14]} Rf3 {[%emt 0:00:39]} 41. Be1 {[%emt 0:15:30]} Re2+ {[%emt 0:15:45]} 0-1

[Event "GER-ch Youth U10 2020"]
[Site "Willingen"]
[Date "2020.10.27"]
[Round "1.3"]
[White "Huang, Luca Hanson"]
[Black "Goldmann, David"]
[Result "0-1"]
[ECO "D00"]
[WhiteElo "1570"]
[BlackElo "1644"]
[Annotator "NA RC"]
[PlyCount "72"]
[EventDate "2020.10.27"]
[EventType "swiss"]
[EventRounds "7"]
[EventCountry "GER"]
[SourceTitle "playchess.com"]
[Source "ChessBase"]
[SourceQuality "1"]
[TimeControl "40/4500+30:900+30"]

1. d4 {[%emt 0:00:00]} d5 {[%emt 0:00:00]} 2. Bf4 {[%emt 0:00:00]} Nf6 {[%emt 0:00:00]} 3. e3 {[%emt 0:00:11]} c5 {[%emt 0:00:00]} 4. c3 {[%emt 0:00:22]} Nc6 {[%emt 0:00:00]} 5. Bd3 {[%emt 0:00:57]} Qb6 {[%emt 0:00:12]} 6. Qb3 {[%emt 0:00:18]} c4 {[%emt 0:00:24]} 7. Qxb6 {[%emt 0:00:13]} axb6 {[%emt 0:01:40]} 8. Bc2 {[%emt 0:00:18]} b5 {[%emt 0:01:11]} 9. Nd2 {[%emt 0:00:44]} e6 {[%emt 0:03:19]} 10. Ngf3 {[%emt 0:00:48]} b4 {[%emt 0:02:22]} 11. O-O {[%emt 0:01:43]} bxc3 {[%emt 0:00:24]} 12. bxc3 {[%emt 0:00:45]} b5 {[%emt 0:03:30]} 13. Ne5 {[%emt 0:09:16]} Bd7 {[%emt 0:08:34]} 14. Rfb1 {[%emt 0:06:06]} Nxe5 {[%emt 0:01:01]} 15. Bxe5 {[%emt 0:01:19]} Be7 {[%emt 0:01:42]} 16. a4 {[%emt 0:07:38]} bxa4 {[%emt 0:03:57]} 17. Rb7 {[%emt 0:04:41]} a3 {[%emt 0:03:44]} 18. Bb1 {[%emt 0:01:55]} Bc8 {[%emt 0:00:51]} 19. Rb5 {[%emt 0:01:51]} O-O {[%emt 0:03:47]} 20. Ba2 {[%emt 0:04:30]} Ng4 {[%emt 0:03:16]} 21. Bg3 {[%emt 0:01:16]} h5 {[%emt 0:05:19]} 22. h3 {[%emt 0:03:14]} Nh6 {[%emt 0:00:27]} 23. Nf3 {[%emt 0:02:44]} Nf5 {[%emt 0:01:35]} 24. Bh2 {[%emt 0:00:45]} f6 {[%emt 0:02:06]} 25. Rab1 {[%emt 0:02:24]} Bd7 {[%emt 0:00:58]} 26. Rb7 {[%emt 0:00:41]} Bc6 {[%emt 0:00:37]} 27. Rc7 {[%emt 0:00:15]} Ba4 {[%emt 0:00:25]} 28. g4 {[%emt 0:00:25]} Bd6 {[%emt 0:00:39]} 29. Rcb7 {[%emt 0:05:20]} Bxh2+ {[%emt 0:00:54]} 30. Kxh2 {[%emt 0:01:16]} Nd6 {[%emt 0:00:18]} 31. R7b6 {[%emt 0:00:17]} Ne4 {[%emt 0:00:23]} 32. Rc1 {[%emt 0:01:31]} hxg4 {[%emt 0:00:37]} 33. hxg4 {[%emt 0:00:41]} Nxf2 {[%emt 0:00:30]} 34. Kg3 {[%emt 0:02:18]} Ne4+ {[%emt 0:00:09]} 35. Kg2 {[%emt 0:00:36]} Rfb8 {[%emt 0:00:11]} 36. Rxe6 {[%emt 0:02:48]} Rb2+ 0-1

[Event "GER-ch Youth U10 2020"]
[Site "Willingen"]
[Date "2020.10.27"]
[Round "1.4"]
[White "Neuhoff, Laertes"]
[Black "Conrad, Marius"]
[Result "1-0"]
[ECO "C54"]
[WhiteElo "1655"]
[BlackElo "1645"]
[Annotator "NA RC"]
[PlyCount "83"]
[EventDate "2020.10.27"]
[EventType "swiss"]
[EventRounds "7"]
[EventCountry "GER"]
[SourceTitle "playchess.com"]
[Source "ChessBase"]
[SourceQuality "1"]
[TimeControl "40/4500+30:900+30"]

1. e4 {[%emt 0:00:00]} e5 {[%emt 0:00:00]} 2. Nf3 {[%emt 0:00:00]} Nc6 {[%emt 0:00:00]} 3. d4 {[%emt 0:00:00]} exd4 {[%emt 0:00:00]} 4. Bc4 {[%emt 0:00:13]} Bc5 {[%emt 0:00:36]} 5. c3 {[%emt 0:00:14]} Nf6 {[%emt 0:01:12]} 6. e5 {[%emt 0:00:34]} d5 {[%emt 0:00:23]} 7. Bb5 {[%emt 0:00:14]} Ne4 {[%emt 0:02:55]} 8. cxd4 {[%emt 0:00:33]} Bb4+ {[%emt 0:00:41]} 9. Bd2 {[%emt 0:00:32]} Bxd2+ {[%emt 0:01:33]} 10. Nbxd2 {[%emt 0:00:17]} O-O {[%emt 0:01:46]} 11. Bxc6 {[%emt 0:02:49]} bxc6 {[%emt 0:01:45]} 12. O-O {[%emt 0:01:56]} Bg4 {[%emt 0:00:44]} 13. Qc2 {[%emt 0:05:45]} Nxd2 {[%emt 0:00:35]} 14. Nxd2 {[%emt 0:00:09]} Qg5 {[%emt 0:00:28]} 15. f4 {[%emt 0:00:59]} Qh6 {[%emt 0:02:10]} 16. Rac1 {[%emt 0:06:15]} Be2 {[%emt 0:01:06]} 17. Rf2 {[%emt 0:01:06]} Bb5 {[%emt 0:06:44]} 18. a4 {[%emt 0:01:06]} Bc4 {[%emt 0:01:03]} 19. Nxc4 {[%emt 0:00:26]} dxc4 {[%emt 0:00:11]} 20. Qxc4 {[%emt 0:00:29]} Rad8 {[%emt 0:01:48]} 21. Qxc6 {[%emt 0:02:52]} Rxd4 {[%emt 0:00:46]} 22. Qxh6 {[%emt 0:02:16]} gxh6 {[%emt 0:00:09]} 23. Rxc7 {[%emt 0:04:09]} Rxa4 {[%emt 0:00:34]} 24. g3 {[%emt 0:03:48]} Rb8 {[%emt 0:01:34]} 25. Rfc2 {[%emt 0:03:00]} Rb6 {[%emt 0:03:50]} 26. R7c6 {[%emt 0:02:13]} Rb7 {[%emt 0:00:48]} 27. Rxh6 {[%emt 0:27:12]} Ra2 {[%emt 0:00:17]} 28. e6 {[%emt 0:04:42]} fxe6 {[%emt 0:00:49]} 29. Rxe6 {[%emt 0:00:11]} Rbxb2 {[%emt 0:00:30]} 30. Rxb2 {[%emt 0:00:13]} Rxb2 {[%emt 0:00:07]} 31. Ra6 {[%emt 0:00:09]} Rb1+ {[%emt 0:00:23]} 32. Kg2 {[%emt 0:00:12]} Rb7 {[%emt 0:00:16]} 33. Kf3 {[%emt 0:00:52]} Kf8 {[%emt 0:00:11]} 34. f5 {[%emt 0:01:39]} Ke7 {[%emt 0:00:53]} 35. Kf4 {[%emt 0:00:49]} Kf7 {[%emt 0:01:44]} 36. Kg5 {[%emt 0:00:19]} h6+ {[%emt 0:02:29]} 37. Rxh6 {[%emt 0:07:09]} Rb2 {[%emt 0:02:38]} 38. Rh7+ {[%emt 0:00:30]} Kg8 {[%emt 0:00:07]} 39. Rxa7 {[%emt 0:00:14]} Rxh2 {[%emt 0:00:07]} 40. Kg6 {[%emt 0:00:18]} Kf8 {[%emt 0:00:20]} 41. f6 {[%emt 0:15:09]} Ke8 {[%emt 0:15:25]} 42. f7+ {[%emt 0:00:15]} 1-0

[Event "GER-ch Youth U10 2020"]
[Site "Willingen"]
[Date "2020.10.27"]
[Round "1.5"]
[White "Rosenkranz, Lennard"]
[Black "Dordevic, Tom"]
[Result "0-1"]
[ECO "B43"]
[WhiteElo "1467"]
[BlackElo "1535"]
[Annotator "NA RC"]
[PlyCount "33"]
[EventDate "2020.10.27"]
[EventType "swiss"]
[EventRounds "7"]
[EventCountry "GER"]
[SourceTitle "playchess.com"]
[Source "ChessBase"]
[SourceQuality "1"]
[TimeControl "40/4500+30:900+30"]

1. e4 {[%emt 0:00:00]} c5 {[%emt 0:00:00]} 2. Nf3 {[%emt 0:00:00]} e6 {[%emt 0:00:00]} 3. d4 {[%emt 0:00:00]} cxd4 {[%emt 0:00:01]} 4. Nxd4 {[%emt 0:00:09]} a6 {[%emt 0:00:13]} 5. Nc3 {[%emt 0:00:12]} Qc7 {[%emt 0:00:14]} 6. Bd3 {[%emt 0:00:20]} Nf6 {[%emt 0:00:16]} 7. O-O {[%emt 0:01:33]} Be7 {[%emt 0:00:36]} 8. Kh1 {[%emt 0:00:35]} b5 {[%emt 0:00:21]} 9. f4 {[%emt 0:04:08]} Bb7 {[%emt 0:05:23]} 10. a3 {[%emt 0:04:51]} d6 {[%emt 0:05:36]} 11. Qe2 {[%emt 0:03:05]} Nbd7 {[%emt 0:06:29]} 12. b4 {[%emt 0:11:30]} Qxc3 {[%emt 0:00:45]} 13. Be3 {[%emt 0:01:06]} Qc7 {[%emt 0:00:58]} 14. Rac1 {[%emt 0:01:09]} Nxe4 {[%emt 0:01:33]} 15. Bxe4 {[%emt 0:00:49]} Bxe4 {[%emt 0:00:06]} 16. Qg4 {[%emt 0:01:16]} Nf6 {[%emt 0:01:21]} 17. Qd1 0-1

[Event "GER-ch Youth U10 2020"]
[Site "Willingen"]
[Date "2020.10.27"]
[Round "1.6"]
[White "Herrmann, Jakob"]
[Black "Marcziter, Alex"]
[Result "1-0"]
[ECO "C45"]
[WhiteElo "1504"]
[BlackElo "1401"]
[Annotator "NA RC"]
[PlyCount "43"]
[EventDate "2020.10.27"]
[EventType "swiss"]
[EventRounds "7"]
[EventCountry "GER"]
[SourceTitle "playchess.com"]
[Source "ChessBase"]
[SourceQuality "1"]
[TimeControl "40/4500+30:900+30"]

1. e4 {[%emt 0:00:00]} e5 {[%emt 0:00:00]} 2. Nf3 {[%emt 0:00:02]} Nc6 {[%emt 0:00:26]} 3. d4 {[%emt 0:00:31]} exd4 {[%emt 0:00:37]} 4. Nxd4 {[%emt 0:00:47]} Bc5 {[%emt 0:00:43]} 5. Be3 {[%emt 0:00:33]} Qf6 {[%emt 0:00:57]} 6. c3 {[%emt 0:00:25]} Nge7 {[%emt 0:00:45]} 7. Bc4 {[%emt 0:00:44]} Ne5 {[%emt 0:02:40]} 8. Be2 {[%emt 0:00:12]} Qg6 {[%emt 0:01:21]} 9. O-O {[%emt 0:03:46]} d6 {[%emt 0:02:28]} 10. Kh1 {[%emt 0:09:28]} Qxe4 {[%emt 0:04:16]} 11. Nd2 {[%emt 0:02:20]} Qg6 {[%emt 0:03:37]} 12. Nb5 {[%emt 0:19:54]} Rb8 {[%emt 0:08:30]} 13. Bxc5 {[%emt 0:01:10]} dxc5 {[%emt 0:01:00]} 14. Nxc7+ {[%emt 0:00:53]} Kd8 {[%emt 0:07:27]} 15. Nb5 {[%emt 0:06:55]} Bd7 {[%emt 0:01:20]} 16. Nf3 {[%emt 0:03:06]} N5c6 {[%emt 0:02:14]} 17. Qd2 {[%emt 0:01:42]} Ke8 {[%emt 0:03:16]} 18. Rad1 {[%emt 0:01:48]} Rd8 {[%emt 0:00:32]} 19. Nd6+ {[%emt 0:00:12]} Kf8 {[%emt 0:01:04]} 20. Nxb7 {[%emt 0:00:13]} Rb8 {[%emt 0:01:14]} 21. Qxd7 {[%emt 0:00:19]} Qf6 {[%emt 0:00:56]} 22. Nxc5 {[%emt 0:00:38]} 1-0

[Event "GER-ch Youth U10 2020"]
[Site "Willingen"]
[Date "2020.10.27"]
[Round "1.7"]
[White "Goldkuhle, Collin"]
[Black "Middendorf, Sven-Jonas"]
[Result "1-0"]
[ECO "C84"]
[WhiteElo "1418"]
[BlackElo "1355"]
[Annotator "NA RC"]
[PlyCount "115"]
[EventDate "2020.10.27"]
[EventType "swiss"]
[EventRounds "7"]
[EventCountry "GER"]
[SourceTitle "playchess.com"]
[Source "ChessBase"]
[SourceQuality "1"]
[TimeControl "40/4500+30:900+30"]

1. e4 {[%emt 0:00:00]} e5 {[%emt 0:00:00]} 2. Nf3 {[%emt 0:00:00]} Nc6 {[%emt 0:00:00]} 3. Bb5 {[%emt 0:00:00]} a6 {[%emt 0:00:00]} 4. Ba4 {[%emt 0:00:02]} Nf6 {[%emt 0:00:00]} 5. O-O {[%emt 0:00:20]} Be7 {[%emt 0:00:40]} 6. d3 {[%emt 0:00:26]} b5 {[%emt 0:00:25]} 7. Bb3 {[%emt 0:00:12]} O-O {[%emt 0:01:00]} 8. Bg5 {[%emt 0:00:31]} Re8 {[%emt 0:08:32]} 9. Re1 {[%emt 0:03:47]} Bb7 {[%emt 0:06:10]} 10. Nbd2 {[%emt 0:01:39]} d6 {[%emt 0:06:35]} 11. Nf1 {[%emt 0:03:54]} Na5 {[%emt 0:04:46]} 12. Ne3 {[%emt 0:05:04]} c5 {[%emt 0:07:25]} 13. Bxf6 {[%emt 0:08:05]} Bxf6 {[%emt 0:03:04]} 14. Bd5 {[%emt 0:02:42]} Nc6 {[%emt 0:05:30]} 15. a4 {[%emt 0:11:17]} Qd7 {[%emt 0:06:11]} 16. Qd2 {[%emt 0:02:53]} Ne7 {[%emt 0:01:57]} 17. Bxb7 {[%emt 0:03:51]} Qxb7 {[%emt 0:00:14]} 18. b3 {[%emt 0:01:00]} d5 {[%emt 0:03:35]} 19. exd5 {[%emt 0:02:58]} Nxd5 {[%emt 0:00:18]} 20. Ng4 {[%emt 0:01:19]} Nf4 {[%emt 0:06:39]} 21. Nxf6+ {[%emt 0:00:24]} gxf6 {[%emt 0:00:25]} 22. Qe3 {[%emt 0:00:51]} Qc6 {[%emt 0:01:52]} 23. Qe4 {[%emt 0:01:49]} Qe6 {[%emt 0:03:56]} 24. axb5 {[%emt 0:02:24]} Kh8 {[%emt 0:04:22]} 25. Kh1 {[%emt 0:00:29]} Rg8 {[%emt 0:02:11]} 26. Rg1 {[%emt 0:00:13]} Qg4 {[%emt 0:02:26]} 27. bxa6 {[%emt 0:05:02]} Qd7 {[%emt 0:06:17]} 28. Nd2 {[%emt 0:02:37]} Qa7 {[%emt 0:02:05]} 29. Qb7 {[%emt 0:00:10]} Qxb7 {[%emt 0:00:13]} 30. axb7 {[%emt 0:00:04]} Rgb8 {[%emt 0:00:14]} 31. Ne4 {[%emt 0:00:12]} Rxb7 {[%emt 0:00:54]} 32. Nxc5 {[%emt 0:00:20]} Rc7 {[%emt 0:00:25]} 33. b4 {[%emt 0:00:48]} Nd5 {[%emt 0:01:38]} 34. Rgb1 {[%emt 0:00:38]} Kg8 {[%emt 0:01:03]} 35. c4 {[%emt 0:00:08]} Nxb4 {[%emt 0:00:33]} 36. Rxb4 {[%emt 0:00:39]} Rxc5 {[%emt 0:00:08]} 37. g3 {[%emt 0:00:12]} Kf8 {[%emt 0:00:19]} 38. Kg2 {[%emt 0:00:01]} Ke8 {[%emt 0:00:14]} 39. Kf3 {[%emt 0:00:45]} Kd7 {[%emt 0:00:32]} 40. Ke4 {[%emt 0:00:18]} Rc6 {[%emt 0:01:19]} 41. h4 {[%emt 0:15:19]} Ke6 {[%emt 0:15:11]} 42. d4 {[%emt 0:00:33]} exd4 {[%emt 0:01:08]} 43. Kxd4 {[%emt 0:00:10]} Kd6 {[%emt 0:00:00]} 44. Rb5 {[%emt 0:00:00]} Ke6 {[%emt 0:00:00]} 45. c5 {[%emt 0:00:00]} Kd7 {[%emt 0:00:00]} 46. Rb6 {[%emt 0:00:00]} Kc7 {[%emt 0:00:00]} 47. Rxc6+ {[%emt 0:00:00]} Kxc6 {[%emt 0:00:00]} 48. h5 {[%emt 0:00:00]} h6 {[%emt 0:00:00]} 49. g4 {[%emt 0:00:00]} Kc7 {[%emt 0:00:00]} 50. Kd5 {[%emt 0:00:00]} Kd7 {[%emt 0:00:00]} 51. c6+ {[%emt 0:00:00]} Kc8 {[%emt 0:00:00]} 52. Kd6 {[%emt 0:00:00]} Kd8 {[%emt 0:00:00]} 53. c7+ {[%emt 0:00:00]} Kc8 {[%emt 0:00:00]} 54. f3 {[%emt 0:00:00]} f5 {[%emt 0:00:00]} 55. gxf5 {[%emt 0:00:00]} f6 {[%emt 0:00:00]} 56. f4 {[%emt 0:00:00]} Kb7 {[%emt 0:00:00]} 57. Kd7 {[%emt 0:00:00]} Kb6 {[%emt 0:00:00]} 58. c8=Q {[%emt 0:00:00]} 1-0

[Event "GER-ch Youth U10 2020"]
[Site "Willingen"]
[Date "2020.10.27"]
[Round "1.8"]
[White "Schuricht, Emil Frederick"]
[Black "Rodriguez Klasen, Ennio"]
[Result "1/2-1/2"]
[ECO "E91"]
[WhiteElo "1451"]
[BlackElo "1297"]
[Annotator "NA RC"]
[PlyCount "70"]
[EventDate "2020.10.27"]
[EventType "swiss"]
[EventRounds "7"]
[EventCountry "GER"]
[SourceTitle "playchess.com"]
[Source "ChessBase"]
[SourceQuality "1"]
[TimeControl "40/4500+30:900+30"]

1. d4 {[%emt 0:00:00]} Nf6 {[%emt 0:00:02]} 2. c4 {[%emt 0:00:00]} g6 {[%emt 0:02:53]} 3. Nc3 {[%emt 0:00:00]} Bg7 {[%emt 0:00:14]} 4. e4 {[%emt 0:00:00]} d6 {[%emt 0:01:12]} 5. Nf3 {[%emt 0:00:15]} O-O {[%emt 0:02:39]} 6. Be2 {[%emt 0:01:25]} b6 {[%emt 0:04:46]} 7. O-O {[%emt 0:02:04]} Bb7 {[%emt 0:01:53]} 8. Qc2 {[%emt 0:03:00]} Nbd7 {[%emt 0:02:27]} 9. h3 {[%emt 0:10:24]} e5 {[%emt 0:03:21]} 10. d5 {[%emt 0:01:56]} c6 {[%emt 0:05:18]} 11. dxc6 {[%emt 0:08:28]} Bxc6 {[%emt 0:00:16]} 12. Rd1 {[%emt 0:00:12]} Nc5 {[%emt 0:01:32]} 13. Bd3 {[%emt 0:09:36]} Qc7 {[%emt 0:03:22]} 14. Nd5 {[%emt 0:02:17]} Bxd5 {[%emt 0:01:50]} 15. cxd5 {[%emt 0:00:22]} Rac8 {[%emt 0:01:16]} 16. Nd2 {[%emt 0:07:57]} Nxd3 {[%emt 0:04:14]} 17. Qxd3 {[%emt 0:00:10]} Qc2 {[%emt 0:01:30]} 18. Qxc2 {[%emt 0:00:23]} Rxc2 {[%emt 0:00:11]} 19. b3 {[%emt 0:00:03]} b5 {[%emt 0:01:13]} 20. Ba3 {[%emt 0:01:06]} Bh6 {[%emt 0:02:36]} 21. Bxd6 {[%emt 0:03:43]} Rxd2 {[%emt 0:03:28]} 22. Bxf8 {[%emt 0:01:05]} Kxf8 {[%emt 0:00:19]} 23. Rxd2 {[%emt 0:00:27]} Bxd2 {[%emt 0:00:10]} 24. f3 {[%emt 0:00:08]} Ke7 {[%emt 0:02:15]} 25. Kf2 {[%emt 0:01:22]} Bb4 {[%emt 0:05:08]} 26. Rc1 {[%emt 0:01:44]} Nd7 {[%emt 0:02:06]} 27. Rc6 {[%emt 0:03:01]} a5 {[%emt 0:03:30]} 28. g4 {[%emt 0:02:21]} Bc5+ {[%emt 0:04:33]} 29. Ke2 {[%emt 0:01:44]} Bb6 {[%emt 0:01:40]} 30. Rc8 {[%emt 0:01:44]} Bd8 {[%emt 0:01:06]} 31. Kd3 {[%emt 0:04:35]} b4 {[%emt 0:00:53]} 32. Ra8 {[%emt 0:06:02]} Bc7 {[%emt 0:05:01]} 33. Ra7 {[%emt 0:02:38]} Bb6 {[%emt 0:01:19]} 34. Ra8 {[%emt 0:00:36]} Bc7 {[%emt 0:00:47]} 35. Ra7 {[%emt 0:00:39]} Bb6 1/2-1/2